[Event "Titled Tuesday Blitz August 15 Early 2023"]
[White "Lana Rodriguez, David"]
[Black "Mekhitarian, Krikor Sevag"]
[WhiteFideId "2270803"]
[BlackFideId "2107660"]
[WhiteElo "2611"]
[BlackElo "2804"]
[Result "1-0"]
[Round "8"]
[TimeControl "180+1"]
[Date "2023.08.15"]
[WhiteClock "0:00:23"]
[BlackClock "0:00:01"]
[Board "35"]

1. e4 {[%clk 0:03:00]}  e6 {[%clk 0:02:59]} 2. d4 {[%clk 0:02:58]}  d5 {[%clk 0:03:00]} 3. exd5 {[%clk 0:02:59]}  exd5 {[%clk 0:03:01]} 4. Nf3 {[%clk 0:03:00]}  Nf6 {[%clk 0:03:01]} 5. Bd3 {[%clk 0:03:00]}  Bd6 {[%clk 0:03:02]} 6. Bg5 {[%clk 0:02:58]}  O-O {[%clk 0:03:01]} 7. O-O {[%clk 0:02:58]}  h6 {[%clk 0:03:01]} 8. Bh4 {[%clk 0:02:58]}  Bg4 {[%clk 0:03:01]} 9. c3 {[%clk 0:02:56]}  Nbd7 {[%clk 0:02:54]} 10. Nbd2 {[%clk 0:02:56]}  c6 {[%clk 0:02:53]} 11. Qc2 {[%clk 0:02:48]}  Qc7 {[%clk 0:02:49]} 12. h3 {[%clk 0:02:48]}  Be6 {[%clk 0:02:48]} 13. Bf5 {[%clk 0:02:46]}  Rae8 {[%clk 0:02:45]} 14. Rae1 {[%clk 0:02:46]}  Bxf5 {[%clk 0:01:49]} 15. Qxf5 {[%clk 0:02:46]}  Ne4 {[%clk 0:01:50]} 16. Qh5 {[%clk 0:01:50]}  Re6 {[%clk 0:01:26]} 17. Nxe4 {[%clk 0:01:45]}  dxe4 {[%clk 0:01:22]} 18. Nd2 {[%clk 0:01:45]}  f5 {[%clk 0:01:21]} 19. Nc4 {[%clk 0:01:37]}  b5 {[%clk 0:00:59]} 20. Nxd6 {[%clk 0:01:37]}  Qxd6 {[%clk 0:01:00]} 21. Re2 {[%clk 0:01:30]}  Kh7 {[%clk 0:00:57]} 22. Re3 {[%clk 0:01:21]}  g6 {[%clk 0:00:52]} 23. Qd1 {[%clk 0:01:20]}  f4 {[%clk 0:00:39]} 24. Ree1 {[%clk 0:01:16]}  g5 {[%clk 0:00:39]} 25. Qc2 {[%clk 0:01:16]}  gxh4 {[%clk 0:00:17]} 26. Rxe4 {[%clk 0:01:16]}  Rxe4 {[%clk 0:00:16]} 27. Qxe4+ {[%clk 0:01:17]}  Qg6 {[%clk 0:00:16]} 28. Qe7+ {[%clk 0:01:16]}  Rf7 {[%clk 0:00:16]} 29. Qxh4 {[%clk 0:01:17]}  f3 {[%clk 0:00:17]} 30. g4 {[%clk 0:01:16]}  Nf6 {[%clk 0:00:17]} 31. Re1 {[%clk 0:01:15]}  Ne4 {[%clk 0:00:17]} 32. Re3 {[%clk 0:01:13]}  Ng5 {[%clk 0:00:13]} 33. Qg3 {[%clk 0:01:09]}  Qf6 {[%clk 0:00:09]} 34. Re5 {[%clk 0:01:04]}  Qf4 {[%clk 0:00:06]} 35. Kh2 {[%clk 0:01:02]}  Qxg3+ {[%clk 0:00:06]} 36. Kxg3 {[%clk 0:01:03]}  Kg7 {[%clk 0:00:02]} 37. h4 {[%clk 0:01:02]}  Nh7 {[%clk 0:00:03]} 38. Re6 {[%clk 0:01:03]}  Nf6 {[%clk 0:00:03]} 39. Kxf3 {[%clk 0:01:00]}  Nd5+ {[%clk 0:00:04]} 40. Kg3 {[%clk 0:00:59]}  Rf6 {[%clk 0:00:04]} 41. Re8 {[%clk 0:00:58]}  Nb6 {[%clk 0:00:02]} 42. Re7+ {[%clk 0:00:57]}  Rf7 {[%clk 0:00:02]} 43. Re6 {[%clk 0:00:56]}  Rc7 {[%clk 0:00:03]} 44. b3 {[%clk 0:00:54]}  Nd5 {[%clk 0:00:03]} 45. c4 {[%clk 0:00:53]}  bxc4 {[%clk 0:00:04]} 46. bxc4 {[%clk 0:00:54]}  Nb6 {[%clk 0:00:05]} 47. c5 {[%clk 0:00:53]}  Nd5 {[%clk 0:00:05]} 48. f4 {[%clk 0:00:50]}  Nb4 {[%clk 0:00:06]} 49. f5 {[%clk 0:00:48]}  Nxa2 {[%clk 0:00:05]} 50. g5 {[%clk 0:00:48]}  hxg5 {[%clk 0:00:06]} 51. hxg5 {[%clk 0:00:49]}  Nc3 {[%clk 0:00:06]} 52. Kf4 {[%clk 0:00:45]}  Nd5+ {[%clk 0:00:05]} 53. Ke5 {[%clk 0:00:44]}  a5 {[%clk 0:00:06]} 54. Kd6 {[%clk 0:00:41]}  a4 {[%clk 0:00:05]} 55. Re8 {[%clk 0:00:42]}  Ra7 {[%clk 0:00:04]} 56. Kxc6 {[%clk 0:00:40]}  a3 {[%clk 0:00:05]} 57. f6+ {[%clk 0:00:38]}  Kf7 {[%clk 0:00:04]} 58. Re1 {[%clk 0:00:37]}  a2 {[%clk 0:00:04]} 59. Ra1 {[%clk 0:00:35]}  Nb4+ {[%clk 0:00:03]} 60. Kb6 {[%clk 0:00:36]}  Ra3 {[%clk 0:00:03]} 61. c6 {[%clk 0:00:35]}  Nc2 {[%clk 0:00:04]} 62. c7 {[%clk 0:00:33]}  Rb3+ {[%clk 0:00:04]} 63. Ka7 {[%clk 0:00:32]}  Rc3 {[%clk 0:00:03]} 64. Rxa2 {[%clk 0:00:31]}  Rxc7+ {[%clk 0:00:03]} 65. Kb6 {[%clk 0:00:31]}  Rc3 {[%clk 0:00:03]} 66. d5 {[%clk 0:00:29]}  Nb4 {[%clk 0:00:03]} 67. Rd2 {[%clk 0:00:28]}  Rc8 {[%clk 0:00:02]} 68. d6 {[%clk 0:00:28]}  Ke6 {[%clk 0:00:02]} 69. d7 {[%clk 0:00:27]}  Rh8 {[%clk 0:00:02]} 70. d8=Q {[%clk 0:00:26]}  Rxd8 {[%clk 0:00:01]} 71. Rxd8 {[%clk 0:00:27]}  Kf7 {[%clk 0:00:01]} 72. Rd7+ {[%clk 0:00:26]}  Kf8 {[%clk 0:00:01]} 73. Kc5 {[%clk 0:00:23]}  Na6+ {[%clk 0:00:01]} 1-0


[Site "https://www.chess.com"]

[Event "Titled Tuesday Blitz August 15 Early 2023"]
[White "Sreyas Payyappat"]
[Black "Yanchenko, Roman"]
[WhiteFideId "46674969"]
[BlackFideId "4137329"]
[WhiteElo "2579"]
[BlackElo "2788"]
[Result "0-1"]
[Round "8"]
[TimeControl "180+1"]
[Date "2023.08.15"]
[WhiteClock "0:00:14"]
[BlackClock "0:00:05"]
[Board "36"]

1. e4 {[%clk 0:03:00]}  e6 {[%clk 0:03:00]} 2. d4 {[%clk 0:02:59]}  d5 {[%clk 0:03:00]} 3. Nc3 {[%clk 0:02:59]}  Bb4 {[%clk 0:02:59]} 4. e5 {[%clk 0:02:53]}  Ne7 {[%clk 0:02:58]} 5. a3 {[%clk 0:02:52]}  Bxc3+ {[%clk 0:02:59]} 6. bxc3 {[%clk 0:02:52]}  b6 {[%clk 0:02:59]} 7. Qg4 {[%clk 0:02:51]}  O-O {[%clk 0:02:59]} 8. f4 {[%clk 0:02:48]}  Ba6 {[%clk 0:02:59]} 9. Nf3 {[%clk 0:02:44]}  c5 {[%clk 0:02:59]} 10. Bxa6 {[%clk 0:02:41]}  Nxa6 {[%clk 0:02:58]} 11. O-O {[%clk 0:02:42]}  Rc8 {[%clk 0:02:57]} 12. Nh4 {[%clk 0:02:31]}  cxd4 {[%clk 0:02:56]} 13. cxd4 {[%clk 0:02:29]}  f5 {[%clk 0:02:10]} 14. exf6 {[%clk 0:02:14]}  Rxf6 {[%clk 0:02:10]} 15. f5 {[%clk 0:02:11]}  exf5 {[%clk 0:02:10]} 16. Nxf5 {[%clk 0:02:11]}  Rxf5 {[%clk 0:02:07]} 17. Rxf5 {[%clk 0:02:12]}  Nxf5 {[%clk 0:02:08]} 18. Qxf5 {[%clk 0:02:12]}  Nc7 {[%clk 0:01:43]} 19. Bf4 {[%clk 0:02:06]}  Nb5 {[%clk 0:01:34]} 20. Be5 {[%clk 0:01:56]}  Rc6 {[%clk 0:01:11]} 21. Rf1 {[%clk 0:01:51]}  Qe8 {[%clk 0:01:11]} 22. Qf3 {[%clk 0:01:39]}  Nc3 {[%clk 0:01:08]} 23. Kh1 {[%clk 0:01:32]}  Ne4 {[%clk 0:01:06]} 24. h3 {[%clk 0:01:25]}  h5 {[%clk 0:00:39]} 25. Qf5 {[%clk 0:01:00]}  Qg6 {[%clk 0:00:37]} 26. Qf8+ {[%clk 0:00:52]}  Kh7 {[%clk 0:00:37]} 27. Rf7 {[%clk 0:00:52]}  Nf6 {[%clk 0:00:26]} 28. c3 {[%clk 0:00:31]}  h4 {[%clk 0:00:19]} 29. Rxa7 {[%clk 0:00:20]}  Rxc3 {[%clk 0:00:04]} 30. Ra8 {[%clk 0:00:20]}  Qb1+ {[%clk 0:00:02]} 31. Kh2 {[%clk 0:00:20]}  Rc1 {[%clk 0:00:02]} 32. Qh8+ {[%clk 0:00:16]}  Kg6 {[%clk 0:00:03]} 33. Qxh4 {[%clk 0:00:16]}  Rh1+ {[%clk 0:00:03]} 34. Kg3 {[%clk 0:00:16]}  Ne4+ {[%clk 0:00:04]} 35. Kg4 {[%clk 0:00:13]}  Qd1+ {[%clk 0:00:04]} 36. Kf4 {[%clk 0:00:14]}  Rf1+ {[%clk 0:00:05]} 37. Ke3 {[%clk 0:00:14]}  Qd2# {[%clk 0:00:05]} 0-1


[Site "https://www.chess.com"]

[Event "Titled Tuesday Blitz August 15 Early 2023"]
[White "Akhmetov, Ayan"]
[Black "Wagner, Dennis"]
[WhiteFideId "13703706"]
[BlackFideId "24650684"]
[WhiteElo "2570"]
[BlackElo "2776"]
[Result "0-1"]
[Round "8"]
[TimeControl "180+1"]
[Date "2023.08.15"]
[WhiteClock "0:00:00"]
[BlackClock "0:00:05"]
[Board "37"]

1. Nf3 {[%clk 0:02:39]}  d5 {[%clk 0:02:58]} 2. g3 {[%clk 0:02:39]}  g6 {[%clk 0:02:58]} 3. Bg2 {[%clk 0:02:40]}  Bg7 {[%clk 0:02:58]} 4. d4 {[%clk 0:02:40]}  Nf6 {[%clk 0:02:58]} 5. O-O {[%clk 0:02:41]}  O-O {[%clk 0:02:59]} 6. c4 {[%clk 0:02:41]}  c6 {[%clk 0:02:59]} 7. Nc3 {[%clk 0:02:41]}  dxc4 {[%clk 0:02:57]} 8. e4 {[%clk 0:02:41]}  Bg4 {[%clk 0:02:52]} 9. h3 {[%clk 0:02:40]}  Bxf3 {[%clk 0:02:51]} 10. Bxf3 {[%clk 0:02:41]}  e5 {[%clk 0:02:36]} 11. dxe5 {[%clk 0:02:42]}  Nfd7 {[%clk 0:02:37]} 12. e6 {[%clk 0:02:42]}  fxe6 {[%clk 0:02:37]} 13. Be3 {[%clk 0:02:42]}  Ne5 {[%clk 0:02:27]} 14. Be2 {[%clk 0:02:40]}  Na6 {[%clk 0:02:14]} 15. f4 {[%clk 0:02:20]}  Nd3 {[%clk 0:02:13]} 16. e5 {[%clk 0:02:21]}  Nxb2 {[%clk 0:02:05]} 17. Qb1 {[%clk 0:02:11]}  Nd3 {[%clk 0:02:00]} 18. Qxb7 {[%clk 0:02:11]}  Nac5 {[%clk 0:01:55]} 19. Qxc6 {[%clk 0:02:05]}  Rc8 {[%clk 0:01:54]} 20. Qb5 {[%clk 0:01:55]}  g5 {[%clk 0:01:28]} 21. Qxc4 {[%clk 0:01:49]}  gxf4 {[%clk 0:01:28]} 22. gxf4 {[%clk 0:01:50]}  Qh4 {[%clk 0:01:25]} 23. Rf3 {[%clk 0:01:41]}  Ne1 {[%clk 0:00:57]} 24. Bxc5 {[%clk 0:01:02]}  Nxf3+ {[%clk 0:00:49]} 25. Bxf3 {[%clk 0:01:01]}  Qxf4 {[%clk 0:00:20]} 26. Qxe6+ {[%clk 0:00:59]}  Kh8 {[%clk 0:00:20]} 27. Bxf8 {[%clk 0:00:59]}  Rxf8 {[%clk 0:00:06]} 28. Bd5 {[%clk 0:00:00]}  Bxe5 {[%clk 0:00:05]} 0-1


[Site "https://www.chess.com"]

[Event "Titled Tuesday Blitz August 15 Early 2023"]
[White "Kashefi, Amir Hosein"]
[Black "Srihari L R"]
[WhiteFideId "12557935"]
[BlackFideId "46617116"]
[WhiteElo "2537"]
[BlackElo "2766"]
[Result "0-1"]
[Round "8"]
[TimeControl "180+1"]
[Date "2023.08.15"]
[WhiteClock "0:00:02"]
[BlackClock "0:01:32"]
[Board "39"]

1. d4 {[%clk 0:02:59]}  d6 {[%clk 0:02:59]} 2. Nf3 {[%clk 0:02:54]}  g6 {[%clk 0:02:58]} 3. g3 {[%clk 0:02:54]}  Bg7 {[%clk 0:02:58]} 4. Bg2 {[%clk 0:02:55]}  Nf6 {[%clk 0:02:58]} 5. O-O {[%clk 0:02:55]}  O-O {[%clk 0:02:58]} 6. b3 {[%clk 0:02:54]}  c5 {[%clk 0:02:58]} 7. Bb2 {[%clk 0:02:50]}  cxd4 {[%clk 0:02:57]} 8. Bxd4 {[%clk 0:02:48]}  Nc6 {[%clk 0:02:57]} 9. Bb2 {[%clk 0:02:49]}  Bd7 {[%clk 0:02:54]} 10. c4 {[%clk 0:02:48]}  Qc8 {[%clk 0:02:54]} 11. Nc3 {[%clk 0:02:46]}  Bh3 {[%clk 0:02:54]} 12. Qd2 {[%clk 0:02:40]}  Bxg2 {[%clk 0:02:51]} 13. Kxg2 {[%clk 0:02:41]}  Re8 {[%clk 0:02:51]} 14. Rac1 {[%clk 0:02:39]}  Qf5 {[%clk 0:02:50]} 15. h4 {[%clk 0:02:37]}  Rad8 {[%clk 0:02:48]} 16. Rfd1 {[%clk 0:02:34]}  h5 {[%clk 0:02:44]} 17. Qg5 {[%clk 0:02:33]}  Qxg5 {[%clk 0:02:39]} 18. Nxg5 {[%clk 0:02:32]}  Ng4 {[%clk 0:02:35]} 19. Rd2 {[%clk 0:02:28]}  Rc8 {[%clk 0:02:33]} 20. Rcd1 {[%clk 0:02:26]}  a6 {[%clk 0:02:32]} 21. a4 {[%clk 0:02:23]}  Na5 {[%clk 0:02:30]} 22. Nd5 {[%clk 0:02:12]}  Nxb3 {[%clk 0:02:27]} 23. Rd3 {[%clk 0:02:07]}  Nc5 {[%clk 0:02:24]} 24. Bxg7 {[%clk 0:02:03]}  Nxd3 {[%clk 0:02:18]} 25. exd3 {[%clk 0:01:58]}  Kxg7 {[%clk 0:02:18]} 26. Rb1 {[%clk 0:01:57]}  e6 {[%clk 0:02:15]} 27. Nf4 {[%clk 0:01:39]}  Re7 {[%clk 0:02:14]} 28. Rb6 {[%clk 0:01:38]}  Rc6 {[%clk 0:02:13]} 29. Rb2 {[%clk 0:01:35]}  Nf6 {[%clk 0:02:13]} 30. f3 {[%clk 0:01:33]}  e5 {[%clk 0:02:10]} 31. Ne2 {[%clk 0:01:33]}  d5 {[%clk 0:02:10]} 32. cxd5 {[%clk 0:01:28]}  Nxd5 {[%clk 0:02:11]} 33. g4 {[%clk 0:01:23]}  Ne3+ {[%clk 0:02:09]} 34. Kg3 {[%clk 0:01:11]}  Rd7 {[%clk 0:02:08]} 35. gxh5 {[%clk 0:01:10]}  gxh5 {[%clk 0:02:07]} 36. Rb3 {[%clk 0:01:07]}  Rc2 {[%clk 0:02:05]} 37. Kf2 {[%clk 0:01:00]}  Nf5 {[%clk 0:02:04]} 38. Rc3 {[%clk 0:00:47]}  Rc7 {[%clk 0:01:53]} 39. Rxc7 {[%clk 0:00:44]}  Rxc7 {[%clk 0:01:54]} 40. Ne4 {[%clk 0:00:42]}  Rc2 {[%clk 0:01:53]} 41. Ke1 {[%clk 0:00:40]}  Nd4 {[%clk 0:01:52]} 42. N2g3 {[%clk 0:00:40]}  Kg6 {[%clk 0:01:51]} 43. Kd1 {[%clk 0:00:39]}  Rh2 {[%clk 0:01:49]} 44. Nd6 {[%clk 0:00:36]}  b5 {[%clk 0:01:48]} 45. axb5 {[%clk 0:00:36]}  axb5 {[%clk 0:01:49]} 46. Nge4 {[%clk 0:00:30]}  Rxh4 {[%clk 0:01:44]} 47. Nc3 {[%clk 0:00:28]}  b4 {[%clk 0:01:44]} 48. Nd5 {[%clk 0:00:27]}  b3 {[%clk 0:01:41]} 49. Nc4 {[%clk 0:00:27]}  Rh2 {[%clk 0:01:40]} 50. Kc1 {[%clk 0:00:22]}  f6 {[%clk 0:01:37]} 51. Ne7+ {[%clk 0:00:22]}  Kf7 {[%clk 0:01:36]} 52. Nd5 {[%clk 0:00:21]}  h4 {[%clk 0:01:37]} 53. f4 {[%clk 0:00:18]}  Ke6 {[%clk 0:01:36]} 54. Nc7+ {[%clk 0:00:16]}  Kf5 {[%clk 0:01:35]} 55. fxe5 {[%clk 0:00:16]}  fxe5 {[%clk 0:01:36]} 56. Nd5 {[%clk 0:00:16]}  h3 {[%clk 0:01:35]} 57. Nde3+ {[%clk 0:00:16]}  Ke6 {[%clk 0:01:35]} 58. Ng4 {[%clk 0:00:12]}  Rc2+ {[%clk 0:01:35]} 59. Kb1 {[%clk 0:00:12]}  h2 {[%clk 0:01:35]} 60. Nxh2 {[%clk 0:00:08]}  Rxh2 {[%clk 0:01:36]} 61. Ne3 {[%clk 0:00:06]}  Nb5 {[%clk 0:01:35]} 62. Ka1 {[%clk 0:00:01]}  b2+ {[%clk 0:01:33]} 63. Ka2 {[%clk 0:00:01]}  Nc3+ {[%clk 0:01:34]} 64. Ka3 {[%clk 0:00:01]}  b1=Q {[%clk 0:01:33]} 65. d4 {[%clk 0:00:02]}  Ra2# {[%clk 0:01:32]} 0-1


[Site "https://www.chess.com"]

[Event "Titled Tuesday Blitz August 15 Early 2023"]
[White "Badmatsyrenov, Oleg"]
[Black "rionelG"]
[WhiteFideId "24115762"]
[WhiteElo "2751"]
[BlackElo "2359"]
[Result "1-0"]
[Round "8"]
[TimeControl "180+1"]
[Date "2023.08.15"]
[WhiteClock "0:00:07"]
[BlackClock "0:00:01"]
[Board "40"]

1. e4 {[%clk 0:03:00]}  c5 {[%clk 0:02:59]} 2. Nf3 {[%clk 0:02:59]}  d6 {[%clk 0:02:59]} 3. d4 {[%clk 0:02:59]}  cxd4 {[%clk 0:03:00]} 4. Nxd4 {[%clk 0:02:59]}  Nf6 {[%clk 0:03:01]} 5. Nc3 {[%clk 0:03:00]}  a6 {[%clk 0:03:01]} 6. f4 {[%clk 0:03:00]}  Nc6 {[%clk 0:03:00]} 7. Nxc6 {[%clk 0:03:00]}  bxc6 {[%clk 0:02:59]} 8. e5 {[%clk 0:03:00]}  Nd5 {[%clk 0:02:56]} 9. Nxd5 {[%clk 0:02:58]}  cxd5 {[%clk 0:02:57]} 10. Qxd5 {[%clk 0:02:58]}  Be6 {[%clk 0:02:58]} 11. Qc6+ {[%clk 0:02:57]}  Bd7 {[%clk 0:02:58]} 12. Qe4 {[%clk 0:02:53]}  dxe5 {[%clk 0:02:54]} 13. fxe5 {[%clk 0:02:52]}  Rc8 {[%clk 0:02:50]} 14. Bd2 {[%clk 0:02:42]}  Qb6 {[%clk 0:02:47]} 15. O-O-O {[%clk 0:02:38]}  e6 {[%clk 0:02:46]} 16. Be3 {[%clk 0:02:32]}  Qa5 {[%clk 0:02:40]} 17. Qb7 {[%clk 0:02:22]}  Qc7 {[%clk 0:02:28]} 18. Qxc7 {[%clk 0:02:16]}  Rxc7 {[%clk 0:02:29]} 19. Bxa6 {[%clk 0:02:13]}  Bc5 {[%clk 0:02:24]} 20. Bxc5 {[%clk 0:02:10]}  Rxc5 {[%clk 0:02:25]} 21. Rhe1 {[%clk 0:02:09]}  Ke7 {[%clk 0:02:22]} 22. Kb1 {[%clk 0:02:06]}  Ra8 {[%clk 0:02:17]} 23. Bb7 {[%clk 0:02:06]}  Ra7 {[%clk 0:02:14]} 24. Bf3 {[%clk 0:02:07]}  Raa5 {[%clk 0:02:09]} 25. b4 {[%clk 0:01:46]}  Rab5 {[%clk 0:02:09]} 26. a3 {[%clk 0:01:40]}  Rxe5 {[%clk 0:02:01]} 27. Rxe5 {[%clk 0:01:26]}  Rxe5 {[%clk 0:02:00]} 28. Kb2 {[%clk 0:01:26]}  f5 {[%clk 0:01:59]} 29. c4 {[%clk 0:01:22]}  g5 {[%clk 0:01:58]} 30. h3 {[%clk 0:01:21]}  h5 {[%clk 0:01:38]} 31. Bxh5 {[%clk 0:01:12]}  g4 {[%clk 0:01:38]} 32. Rd2 {[%clk 0:01:09]}  gxh3 {[%clk 0:01:36]} 33. gxh3 {[%clk 0:01:07]}  Re3 {[%clk 0:01:36]} 34. Rh2 {[%clk 0:00:54]}  Ba4 {[%clk 0:01:32]} 35. b5 {[%clk 0:00:27]}  Kd6 {[%clk 0:01:31]} 36. Be8 {[%clk 0:00:21]}  Kc5 {[%clk 0:01:27]} 37. h4 {[%clk 0:00:19]}  f4 {[%clk 0:01:23]} 38. h5 {[%clk 0:00:19]}  f3 {[%clk 0:01:23]} 39. Kc1 {[%clk 0:00:11]}  Rxa3 {[%clk 0:00:41]} 40. h6 {[%clk 0:00:09]}  f2 {[%clk 0:00:32]} 41. Rxf2 {[%clk 0:00:09]}  Rh3 {[%clk 0:00:32]} 42. b6 {[%clk 0:00:06]}  Kxb6 {[%clk 0:00:24]} 43. Bxa4 {[%clk 0:00:06]}  Rxh6 {[%clk 0:00:25]} 44. Kb2 {[%clk 0:00:04]}  Kc5 {[%clk 0:00:24]} 45. Bb5 {[%clk 0:00:04]}  e5 {[%clk 0:00:22]} 46. Kc2 {[%clk 0:00:04]}  Kb4 {[%clk 0:00:20]} 47. Kd3 {[%clk 0:00:04]}  Rh4 {[%clk 0:00:20]} 48. Ke3 {[%clk 0:00:05]}  Kc5 {[%clk 0:00:14]} 49. Rf6 {[%clk 0:00:05]}  Rg4 {[%clk 0:00:11]} 50. Rc6+ {[%clk 0:00:06]}  Kb4 {[%clk 0:00:11]} 51. Re6 {[%clk 0:00:07]}  e4 {[%clk 0:00:06]} 52. Rxe4 {[%clk 0:00:07]}  Rg3+ {[%clk 0:00:06]} 53. Kd4 {[%clk 0:00:07]}  Rg1 {[%clk 0:00:06]} 54. Ke5 {[%clk 0:00:07]}  Rh1 {[%clk 0:00:05]} 55. Kd5 {[%clk 0:00:07]}  Rd1+ {[%clk 0:00:04]} 56. Kc6 {[%clk 0:00:07]}  Rc1 {[%clk 0:00:03]} 57. c5+ {[%clk 0:00:07]}  Ka5 {[%clk 0:00:01]} 58. Ra4# {[%clk 0:00:07]} 1-0


[Site "https://www.chess.com"]

[Event "Titled Tuesday Blitz August 15 Early 2023"]
[White "Colas, Joshua"]
[Black "Nakamura, Hikaru"]
[WhiteFideId "2044447"]
[BlackFideId "2016192"]
[WhiteElo "2622"]
[BlackElo "3232"]
[Result "0-1"]
[Round "8"]
[TimeControl "180+1"]
[Date "2023.08.15"]
[WhiteClock "0:00:00"]
[BlackClock "0:01:04"]
[Board "41"]

1. Nf3 {[%clk 0:02:57]}  g6 {[%clk 0:03:00]} 2. g3 {[%clk 0:02:56]}  Bg7 {[%clk 0:03:01]} 3. Bg2 {[%clk 0:02:57]}  d6 {[%clk 0:03:02]} 4. O-O {[%clk 0:02:53]}  Bd7 {[%clk 0:03:02]} 5. d4 {[%clk 0:02:53]}  Qc8 {[%clk 0:03:03]} 6. Re1 {[%clk 0:02:52]}  Bh3 {[%clk 0:03:03]} 7. e4 {[%clk 0:02:52]}  h5 {[%clk 0:03:03]} 8. Bxh3 {[%clk 0:02:46]}  Qxh3 {[%clk 0:03:03]} 9. Ng5 {[%clk 0:02:47]}  Qg4 {[%clk 0:03:01]} 10. h3 {[%clk 0:02:41]}  Qd7 {[%clk 0:02:55]} 11. h4 {[%clk 0:02:33]}  Nc6 {[%clk 0:02:50]} 12. d5 {[%clk 0:02:28]}  Ne5 {[%clk 0:02:49]} 13. Nc3 {[%clk 0:02:25]}  Nh6 {[%clk 0:02:46]} 14. Be3 {[%clk 0:02:17]}  c5 {[%clk 0:02:44]} 15. Qe2 {[%clk 0:02:09]}  a6 {[%clk 0:02:37]} 16. a4 {[%clk 0:02:09]}  Rb8 {[%clk 0:02:34]} 17. a5 {[%clk 0:02:07]}  O-O {[%clk 0:02:33]} 18. Na4 {[%clk 0:02:03]}  Qb5 {[%clk 0:02:30]} 19. Qxb5 {[%clk 0:02:01]}  axb5 {[%clk 0:02:30]} 20. Nb6 {[%clk 0:02:01]}  Nc4 {[%clk 0:02:26]} 21. Nd7 {[%clk 0:01:55]}  Bxb2 {[%clk 0:02:08]} 22. Ra2 {[%clk 0:01:33]}  Bc3 {[%clk 0:02:02]} 23. Rb1 {[%clk 0:01:32]}  b4 {[%clk 0:02:02]} 24. Nxf8 {[%clk 0:01:29]}  Rxf8 {[%clk 0:02:02]} 25. a6 {[%clk 0:01:22]}  bxa6 {[%clk 0:02:01]} 26. Rxa6 {[%clk 0:01:22]}  Nxe3 {[%clk 0:01:59]} 27. fxe3 {[%clk 0:01:22]}  Ng4 {[%clk 0:01:59]} 28. Ra7 {[%clk 0:01:17]}  Bf6 {[%clk 0:01:50]} 29. Rb3 {[%clk 0:00:59]}  Rb8 {[%clk 0:01:47]} 30. e5 {[%clk 0:00:53]}  Nxe5 {[%clk 0:01:35]} 31. Ne4 {[%clk 0:00:52]}  Kg7 {[%clk 0:01:29]} 32. c3 {[%clk 0:00:46]}  bxc3 {[%clk 0:01:16]} 33. Rxc3 {[%clk 0:00:10]}  Nf3+ {[%clk 0:01:16]} 34. Kf2 {[%clk 0:00:11]}  Bxc3 {[%clk 0:01:16]} 35. Nxc3 {[%clk 0:00:10]}  Ne5 {[%clk 0:01:17]} 36. Rxe7 {[%clk 0:00:11]}  Rb2+ {[%clk 0:01:17]} 37. Kf1 {[%clk 0:00:10]}  Ng4 {[%clk 0:01:08]} 38. Ne2 {[%clk 0:00:07]}  Kf8 {[%clk 0:01:07]} 39. Re4 {[%clk 0:00:00]}  Nf6 {[%clk 0:01:04]} 0-1


[Site "https://www.chess.com"]

[Event "Titled Tuesday Blitz August 15 Early 2023"]
[White "Pakleza, Zbigniew"]
[Black "Milosevic, Milos"]
[WhiteFideId "1119290"]
[BlackFideId "964875"]
[WhiteElo "2816"]
[BlackElo "2605"]
[Result "1-0"]
[Round "8"]
[TimeControl "180+1"]
[Date "2023.08.15"]
[WhiteClock "0:01:15"]
[BlackClock "0:00:32"]
[Board "43"]

1. d4 {[%clk 0:03:00]}  Nf6 {[%clk 0:02:51]} 2. Nf3 {[%clk 0:03:01]}  e6 {[%clk 0:02:51]} 3. Bf4 {[%clk 0:03:01]}  d5 {[%clk 0:02:50]} 4. e3 {[%clk 0:03:01]}  Bd6 {[%clk 0:02:51]} 5. Bg3 {[%clk 0:03:01]}  O-O {[%clk 0:02:49]} 6. Nbd2 {[%clk 0:03:01]}  c5 {[%clk 0:02:49]} 7. c3 {[%clk 0:03:01]}  Nc6 {[%clk 0:02:50]} 8. Bd3 {[%clk 0:03:01]}  b6 {[%clk 0:02:43]} 9. Ne5 {[%clk 0:03:00]}  Qc7 {[%clk 0:02:23]} 10. f4 {[%clk 0:03:00]}  Ne8 {[%clk 0:02:24]} 11. O-O {[%clk 0:02:32]}  f5 {[%clk 0:02:05]} 12. Bh4 {[%clk 0:02:27]}  Nf6 {[%clk 0:02:01]} 13. Bxf6 {[%clk 0:02:26]}  gxf6 {[%clk 0:01:41]} 14. Nxc6 {[%clk 0:02:26]}  Qxc6 {[%clk 0:01:42]} 15. Kh1 {[%clk 0:02:23]}  a6 {[%clk 0:01:41]} 16. g4 {[%clk 0:02:14]}  fxg4 {[%clk 0:01:41]} 17. Qxg4+ {[%clk 0:02:15]}  Kh8 {[%clk 0:01:41]} 18. Rg1 {[%clk 0:02:13]}  Ra7 {[%clk 0:01:40]} 19. Qh4 {[%clk 0:01:45]}  e5 {[%clk 0:01:39]} 20. Rg3 {[%clk 0:01:25]}  e4 {[%clk 0:01:30]} 21. Be2 {[%clk 0:01:21]}  cxd4 {[%clk 0:01:17]} 22. exd4 {[%clk 0:01:22]}  Qc7 {[%clk 0:00:43]} 23. Rag1 {[%clk 0:01:17]}  Bxf4 {[%clk 0:00:32]} 24. Qxf6+ {[%clk 0:01:15]} 1-0


[Site "https://www.chess.com"]

[Event "Titled Tuesday Blitz August 15 Early 2023"]
[White "Molina, Roberto Junio Brito"]
[Black "Zavgorodniy, Sergiy"]
[WhiteFideId "2109450"]
[BlackFideId "14110148"]
[WhiteElo "2803"]
[BlackElo "2592"]
[Result "1-0"]
[Round "8"]
[TimeControl "180+1"]
[Date "2023.08.15"]
[WhiteClock "0:02:26"]
[BlackClock "0:02:25"]
[Board "44"]

1. e4 {[%clk 0:03:00]}  c6 {[%clk 0:02:59]} 2. d4 {[%clk 0:03:00]}  d5 {[%clk 0:03:00]} 3. exd5 {[%clk 0:03:01]}  cxd5 {[%clk 0:03:01]} 4. Bd3 {[%clk 0:03:01]}  Nc6 {[%clk 0:03:00]} 5. c3 {[%clk 0:03:02]}  Nf6 {[%clk 0:03:01]} 6. Bf4 {[%clk 0:03:01]}  Bg4 {[%clk 0:03:01]} 7. Nf3 {[%clk 0:03:01]}  e6 {[%clk 0:03:00]} 8. Nbd2 {[%clk 0:03:00]}  Bd6 {[%clk 0:03:00]} 9. Bxd6 {[%clk 0:03:00]}  Qxd6 {[%clk 0:03:01]} 10. O-O {[%clk 0:03:00]}  O-O {[%clk 0:03:00]} 11. Qe1 {[%clk 0:03:00]}  Bh5 {[%clk 0:02:59]} 12. Ne5 {[%clk 0:03:00]}  Bg6 {[%clk 0:02:59]} 13. Bxg6 {[%clk 0:02:59]}  hxg6 {[%clk 0:03:00]} 14. f4 {[%clk 0:02:59]}  Rab8 {[%clk 0:02:59]} 15. Rf3 {[%clk 0:02:56]}  Rfe8 {[%clk 0:02:49]} 16. Rh3 {[%clk 0:02:55]}  Nh5 {[%clk 0:02:45]} 17. g4 {[%clk 0:02:45]}  Nxf4 {[%clk 0:02:43]} 18. Rh8+ {[%clk 0:02:45]}  Kxh8 {[%clk 0:02:42]} 19. Nxf7+ {[%clk 0:02:46]}  Kg8 {[%clk 0:02:42]} 20. Nxd6 {[%clk 0:02:45]}  Red8 {[%clk 0:02:39]} 21. Qe3 {[%clk 0:02:33]}  g5 {[%clk 0:02:37]} 22. Nb5 {[%clk 0:02:33]}  a6 {[%clk 0:02:34]} 23. Na3 {[%clk 0:02:32]}  Re8 {[%clk 0:02:34]} 24. Nf3 {[%clk 0:02:31]}  b5 {[%clk 0:02:25]} 25. Nxg5 {[%clk 0:02:26]} 1-0


[Site "https://www.chess.com"]